Workbook

Sheet 1. Info
AB1: Algoma Power Inc.
AB2: Atikokan Hydro Inc.
AB3: Attawapiskat Power Corporation
AB4: Bluewater Power Distribution Corporation
AB5: Brantford Power Inc.
AB6: Burlington Hydro Inc.
AB7: Canadian Niagara Power Inc.
AB8: Centre Wellington Hydro Ltd.
AB9: Chapleau Public Utilities Corporation
AB10: COLLUS PowerStream Corp.
AB11: Cooperative Hydro Embrun Inc.
AB12: E.L.K. Energy Inc.
A13: Drop-down lists are shaded blue; Input cells are shaded green. | AB13: Energy + Inc.
AB14: Enersource Hydro Mississauga Inc.
C15: Utility Name | D15: Hydro One Networks Inc. | AB15: Entegrus Powerlines Inc.
AB16: EnWin Utilities Ltd.
C17: Service Territory | D17: Haldimand Service Territory | AB17: Erie Thames Powerlines Corporation
AB18: Espanola Regional Hydro Distribution Corporation
C19: Assigned EB Number | D19: EB | AB19: Essex Powerlines Corporation
AB20: Festival Hydro Inc.
C21: Name and Title | D21: Clement Li, Manager Distribution Pricing | AB21: Fort Albany Power Corporation
AB22: Fort Frances Power Corporation
C23: Phone Number | D23: 416-345-5848 | AB23: Greater Sudbury Hydro Inc.
AB24: Grimsby Power Inc.
C25: Email Address | D25: Clement.Li@HydroOne.com | AB25: Guelph Hydro Electric Systems Inc.
AB26: Haldimand County Hydro Inc.
C27: Date | AB27: Halton Hills Hydro Inc.
AB28: Hearst Power Distribution Company Limited
C29: Last COS Re-based Year | D29: 2014 | AB29: Horizon Utilities Corporation
AB30: Hydro 2000 Inc.
AB31: Hydro Hawkesbury Inc.
AB32: Hydro One Brampton Networks Inc.
AB33: Hydro One Networks Inc.
AB34: Hydro One Remote Communities Inc.
AB35: Hydro Ottawa Limited
AB36: Innpower Corporation
AB37: Kashechewan Power Corporation
AB38: Kenora Hydro Electric Corporation Ltd.
AB39: Kingston Hydro Corporation
AB40: Kitchener-Wilmot Hydro Inc.
AB41: Lakefront Utilities Inc.
AB42: Lakeland Power Distribution Ltd.
AB43: London Hydro Inc.
AB44: Midland Power Utility Corporation
AB45: Milton Hydro Distribution Inc.
AB46: Newmarket-Tay Power Distribution Ltd.
AB47: Niagara Peninsula Energy Inc.
AB48: Niagara-on-the-Lake Hydro Inc.
AB49: North Bay Hydro Distribution Limited
AB50: Northern Ontario Wires Inc.
AB51: Oakville Hydro Electricity Distribution Inc.
AB52: Orangeville Hydro Limited
AB53: Orillia Power Distribution Corporation
AB54: Oshawa PUC Networks Inc.
AB55: Ottawa River Power Corporation
AB56: Peterborough Distribution Incorporated
AB57: PowerStream Inc.
AB58: PUC Distribution Inc.
AB59: Renfrew Hydro Inc.
AB60: Rideau St. Lawrence Distribution Inc.
AB61: Sioux Lookout Hydro Inc.
AB62: St. Thomas Energy Inc.
AB63: Thunder Bay Hydro Electricity Distribution Inc.
AB64: Tillsonburg Hydro Inc.
AB65: Toronto Hydro-Electric System Limited
AB66: Veridian Connections Inc.
AB67: Wasaga Distribution Inc.
AB68: Waterloo North Hydro Inc.
AB69: Welland Hydro-Electric System Corp.
AB70: Wellington North Power Inc.
AB71: West Coast Huron Energy Inc.
AB72: Westario Power Inc.
AB73: Whitby Hydro Electric Corporation
AB74: Woodstock Hydro Services Inc.

Sheet 2. Table of Contents
D20: 1. Info | I20: 6. Historical Wholesale
D22: 2. Table of Contents | I22: 7. Current Wholesale
D24: 3. Rate Classes | I24: 8. Forecast Wholesale
D26: 4. RRR Data | I26: 9. RTSR Rates to Forecast
D28: 5. UTRs and Sub-Transmission

Sheet 3. Rate Classes
C13: 1. Select the appropriate rate classes that appear on your most recent Board-Approved Tariff of Rates and Charges. 2. Enter the RTS Network and Connection Rate as it appears on the Tariff of Rates and Charges
C15: Rate Class | E15: Unit | G15: RTSR-Network | I15: RTSR-Connection
C17: Embedded Distributor | E17: kW | G17: 2.9566 | I17: 2.3933 | L17: =IF(OR(ISBLANK(C17), ISERROR(FIND("Choose", C17))=FALSE), 0, 1) -> 1 | M17: ="C" & ROW(C17) -> C17 | N17: =IF(OR(C17="General Service Intermediate Rate Class 1,000 To 4,999 kW (formerly General Service > 50 kW Customers)", C17="General Service Intermediate Rate Class 1,000 To 4,999 kW (formerly Large Use Customers)"), "x", "") ->  | W17: Choose Rate Class
C18: Choose Rate Class | L18: 0 | M18: C18 | N18: =IF(OR(C18="General Service Intermediate Rate Class 1,000 To 4,999 kW (formerly General Service > 50 kW Customers)", C18="General Service Intermediate Rate Class 1,000 To 4,999 kW (formerly Large Use Customers)"), "x", "") ->  | W18: Residential
C19: Choose Rate Class | L19: 0 | M19: C19 | W19: Residential Regular
C20: Choose Rate Class | L20: 0 | M20: C20 | W20: Residential Urban
C21: Choose Rate Class | L21: 0 | M21: C21 | W21: Residential Urban Year-Round
C22: Choose Rate Class | L22: 0 | M22: C22 | W22: Residential Suburban
C23: Choose Rate Class | L23: 0 | M23: C23 | W23: Residential Suburban Seasonal
C24: Choose Rate Class | L24: 0 | M24: C24 | W24: Residential Suburban Year Round
C25: Choose Rate Class | L25: 0 | M25: C25 | W25: Residential - Time of Use
C26: Choose Rate Class | L26: 0 | M26: C26 | W26: Residential - Hensall
C27: Choose Rate Class | L27: 0 | M27: C27 | W27: Residential – High Density [R1]
C28: Choose Rate Class | L28: 0 | M28: C28 | W28: Residential – Normal Density [R2]
C29: Choose Rate Class | L29: 0 | M29: C29 | W29: Seasonal Residential – High Density [R3]
C30: Choose Rate Class | L30: 0 | M30: C30 | W30: Seasonal Residential – Normal Density [R4]
C31: Choose Rate Class | L31: 0 | M31: C31 | W31: Residential – Urban [UR]
C32: Choose Rate Class | L32: 0 | M32: C32 | W32: General Service Less Than 50 kW
C33: Choose Rate Class | L33: 0 | M33: C33 | W33: General Service Less Than 50 kW – Single Phase energy-billed [G1]
C34: Choose Rate Class | L34: 0 | M34: C34 | W34: General Service Less Than 50 kW – Three Phase energy-billed [G3]
C35: Choose Rate Class | L35: 0 | M35: C35 | W35: General Service Less Than 50 kW – Transmission Class energy-billed [T]
C36: Choose Rate Class | L36: 0 | M36: C36 | W36: General Service Less Than 50 kW – Urban energy-billed [UG]
C37: Choose Rate Class | L37: 0 | M37: C37 | W37: Westport Sewage Treatment Plant
C38: Choose Rate Class | L38: 0 | M38: C38 | W38: Small Commercial and USL - per meter
N39: =COUNTIF(N17:N38, "x") -> 0 | W39: Small Commercial and USL - per connection
W40: Farms – Single Phase energy-billed [F1]
W41: General Service 50 to 499 kW
W42: General Service 50 to 699 kW
W43: General Service 50 to 999 kW
W44: General Service 50 to 999 kW - Interval Metered
W45: General Service 50 to 1,000 kW
W46: General Service 50 to 1,000 kW - Interval Meters
W47: General Service 50 to 1,000 kW - Non Interval Meters
W48: General Service 50 to 1,499 kW
W49: General Service 50 to 1,499 kW - Interval Metered
W50: General Service 50 to 2,499 kW
W51: General Service 50 to 2,999 kW
W52: General Service 50 to 2,999 kW - Time of Use
W53: General Service 50 to 4,999 kW
W54: General Service 50 to 4,999 kW – Interval Metered
W55: General Service 50 to 4,999 kW - Time of Use
W56: General Service 50 to 4,999 kW (CoGeneration)
W57: General Service 50 to 4,999 kW (formerly Time of Use)
W58: General Service 500 to 4,999 kW
W59: General Service 700 to 4,999 kW
W60: General Service 1,000 to 2,999 kW
W61: General Service 1,000 to 4,999 kW
W62: General Service 1,000 to 4,999 kW - Interval Meters
W63: General Service 1,000 To 4,999 kW (co-generation)
W64: General Service Greater Than 1,000 kW
W65: General Service Intermediate Rate Class 1,000 To 4,999 kW (formerly Large Use Customers)
W66: General Service Intermediate Rate Class 1,000 To 4,999 kW (formerly General Service > 50 kW Customers)
W67: General Service 1,500 to 4,999 kW
W68: General Service Equal To Or Greater Than 1,500 kW
W69: General Service Equal To Or Greater Than 1,500 kW - Interval Metered
W70: General Service Intermediate 1,000 To 4,999 kW
W71: General Service 2,500 to 4,999 kW
W72: General Service 3,000 to 4,999 kW
W73: General Service 3,000 to 4,999 kW - Interval Metered
W74: General Service 3,000 to 4,999 kW - Intermediate Use
W75: General Service 3,000 to 4,999 kW - Time of Use
W76: Intermediate With Self Generation
W77: General Service - Commercial
W78: General Service - Institutional
W79: Farms – Three Phase energy-billed [F3]
W80: Large Use
W81: Large Use - Regular
W82: Large Use > 5000 kW
W83: Large Use - 3TS
W84: Large Use - Ford Annex
W85: Unmetered Scattered Load
W86: Sentinel Lighting
W87: Street Lighting
W88: Embedded Distributor
W89: Low Voltage Wheeling Charge Rate
W90: Stand-By
W91: Standby Power
W92: Standby Power – INTERIM APPROVAL
W93: Standby Power - APPROVED ON AN INTERIM BASIS
W94: Standby - General Service 50 - 1,000 kW
W95: Standby Power General Service 50 to 1,499 kW
W96: Standby - General Service 1,000 - 5,000 kW
W97: Standby Power General Service 1,500 to 4,999 kW
W98: Standby - Large Use
W99: Standby Power General Service Large Use
W100: Standby Distribution Service

Sheet 4. RRR Data
B15: Rate Class | C15: Rate Description | D15: Unit | E15: Rate | F15: Non-Loss Adjusted Metered kWh | G15: Non-Loss Adjusted Metered kW | H15: Applicable Loss Factor eg: (1.0325) | I15: Loss Adjusted Billed kWh
B17: Embedded Distributor | C17: RTSR - Network | D17: kW | E17: 2.9566 | F17: 71831928 | G17: 245804 | H17: 1.0288
B18: Embedded Distributor | C18: RTSR - Connection | D18: kW | E18: 2.3933 | F18: 71831928 | G18: 245804 | H18: 1.0288

Sheet 5. UTRs and Sub-Transmission
B18: Uniform Transmission Rates | C18: Unit | E18: 2015 | H18: 2016 | J18: 2017
B20: Rate Description | E20: Rate | H20: Rate | J20: Rate
B22: Network Service Rate | C22: kW | E22: 3.78 | H22: 3.66 | J22: 3.66
B24: Line Connection Service Rate | C24: kW | E24: 0.86 | H24: 0.87 | J24: 0.87
B26: Transformation Connection Service Rate | C26: kW | E26: 2 | H26: 2.02 | J26: 2.02
B29: Hydro One Sub-Transmission Rates | C29: Unit | E29: 2015 - 2016 | H29: 2016 | J29: 2017
E30: Jan - April 2015 | F30: May 2015 - Jan 2016 | H30: Feb - Dec 2016
B34: Rate Description | E34: Rate | H34: Rate | J34: Rate
B36: Network Service Rate | C36: kW | E36: 3.23 | F36: 3.4121 | H36: 3.3396 | J36: 3.3396
B38: Line Connection Service Rate | C38: kW | E38: 0.65 | F38: 0.7879 | H38: 0.7791 | J38: 0.7791
B40: Transformation Connection Service Rate | C40: kW | E40: 1.62 | F40: 1.8018 | H40: 1.7713 | J40: 1.7713
B42: Both Line and Transformation Connection Service Rate | C42: kW | E42: =E40+E38 -> 2.27 | F42: =SUM(F40,F38) -> 2.5897 | H42: =SUM(H40,H38) -> 2.5504 | J42: =SUM(J40,J38) -> 2.5504
B45: If needed, add extra host here. (I) | C45: Unit | E45: 2015 | H45: 2016 | J45: 2017
B49: Rate Description | E49: Rate | H49: Rate | J49: Rate
B51: Network Service Rate | C51: kW
B53: Line Connection Service Rate | C53: kW
B55: Transformation Connection Service Rate | C55: kW
B57: Both Line and Transformation Connection Service Rate | C57: kW | E57: =SUM(E53,E55) -> 0 | H57: =SUM(H53,H55) -> 0 | J57: =J55+J53 -> 0
B60: If needed, add extra host here. (II) | C60: Unit | E60: Effective January 1, 2014 | H60: Effective January 1, 2015 | J60: Effective January 1, 2016
B64: Rate Description | E64: Rate | H64: Rate | J64: Rate
B66: Network Service Rate | C66: kW
B68: Line Connection Service Rate | C68: kW
B70: Transformation Connection Service Rate | C70: kW
B72: Both Line and Transformation Connection Service Rate | C72: kW | E72: =SUM(E68,E70) -> 0 | H72: =SUM(H68,H70) -> 0 | J72: =J70+J68 -> 0
E74: Historical 2015 | H74: Current 2016 | J74: Forecast 2017
B75: Low Voltage Switchgear Credit (if applicable, enter as a negative value) | C75: $

Sheet 6. Historical Wholesale
B21: IESO | D21: Network | H21: Line Connection | L21: Transformation Connection | P21: Total Line
B22: Month | D22: Units Billed | E22: Rate | F22: Amount | H22: Units Billed | I22: Rate | J22: Amount | L22: Units Billed | M22: Rate | N22: Amount | P22: Amount
B24: January | D24: 491.805 | E24: =IF(D24<>0,F24/D24,0) -> 3.570520837 | F24: 1756 | H24: 538.173 | I24: =IF(H24<>0,J24/H24,0) -> 0.800002973 | J24: 430.54 | L24: 538.173 | M24: =IF(L24<>0,N24/L24,0) -> 1.859996693 | N24: 1001 | P24: =J24+N24 -> 1431.54
B25: February | D25: 480.483 | E25: =IF(D25<>0,F25/D25,0) -> 3.569325033 | F25: 1715 | H25: 515.988 | I25: =IF(H25<>0,J25/H25,0) -> 0.7999992248 | J25: 412.79 | L25: 515.988 | M25: =IF(L25<>0,N25/L25,0) -> 1.860004496 | N25: 959.74 | P25: 1372.53
B26: March | D26: 446.049 | E26: 3.569114604 | F26: 1592 | H26: 460.098 | I26: 0.8000034775 | J26: 368.08 | L26: 460.098 | M26: 1.859995045 | N26: 855.78 | P26: 1223.86
B27: April | D27: 1950.255 | E27: 3.569789592 | F27: 6962 | H27: 1950.255 | I27: 0.799997949 | J27: 1560.2 | L27: 1950.255 | M27: 1.859997795 | N27: 3627.47 | P27: 5187.67
B28: May | D28: 7751.29 | E28: 3.569986415 | F28: 27672 | H28: 8975.04 | I28: 0.7999997772 | J28: 7180.03 | L28: 8975.04 | M28: 1.85999951 | N28: 16693.57 | P28: 23873.6
B29: June | D29: 9067.76 | E29: 3.570010675 | F29: 32372 | H29: 9424.34 | I29: 0.7999997878 | J29: 7539.47 | L29: 9424.34 | M29: 1.859999745 | N29: 17529.27 | P29: 25068.74
B30: July | D30: 412.29 | E30: 3.570302457 | F30: 1472 | H30: 9230.16 | I30: 0.8000002167 | J30: 7384.13 | L30: 9230.16 | M30: 1.86000026 | N30: 17168.1 | P30: 24552.23
B31: August | D31: 412.848 | E31: 3.57032128 | F31: 1474 | H31: 9545.75 | I31: 0.8 | J31: 7636.6 | L31: 9545.75 | M31: 1.860000524 | N31: 17755.1 | P31: 25391.7
B32: September | D32: 410.148 | E32: 3.569443225 | F32: 1464 | H32: 9304.71 | I32: 0.8000002149 | J32: 7443.77 | L32: 9304.71 | M32: 1.859999936 | N32: 17306.76 | P32: 24750.53
B33: October | D33: 9603.09 | E33: 3.569996741 | F33: 34283 | H33: 9603.09 | I33: 0.7999997917 | J33: 7682.47 | L33: 9603.09 | M33: 1.860000271 | N33: 17861.75 | P33: 25544.22
B34: November | D34: 483.129 | E34: 3.570474966 | F34: 1725 | H34: 505.494 | I34: 0.8000094957 | J34: 404.4 | L34: 505.494 | M34: 1.860002295 | N34: 940.22 | P34: 1344.62
B35: December | D35: 440.28 | E35: 3.570455165 | F35: 1572 | H35: 509.346 | I35: 0.8000062826 | J35: 407.48 | L35: 509.346 | M35: 1.859993011 | N35: 947.38 | P35: 1354.86
B37: Total | D37: =SUM(D24:D35) -> 31949.427 | E37: =IF(D37<>0,F37/D37,0) -> 3.569985778 | F37: =SUM(F24:F35) -> 114059 | H37: =SUM(H24:H35) -> 60562.444 | I37: =IF(H37<>0,J37/H37,0) -> 0.8000000793 | J37: =SUM(J24:J35) -> 48449.96 | L37: =SUM(L24:L35) -> 60562.444 | M37: =IF(L37<>0,N37/L37,0) -> 1.859999904 | N37: =SUM(N24:N35) -> 112646.14 | P37: =SUM(P24:P35) -> 161096.1
B39: Hydro One | D39: Network | H39: Line Connection | L39: Transformation Connection | P39: Total Line
B41: Month | D41: Units Billed | E41: Rate | F41: Amount | H41: Units Billed | I41: Rate | J41: Amount | L41: Units Billed | M41: Rate | N41: Amount | P41: Amount
B43: January | D43: 16287.84219 | E43: =IF(D43<>0,F43/D43,0) -> 2.650013397 | F43: 43163 | H43: 16331.46235 | I43: =IF(H43<>0,J43/H43,0) -> 0.6400002509 | J43: 10452.14 | L43: 16331.46235 | M43: =IF(L43<>0,N43/L43,0) -> 1.499999784 | N43: 24497.19 | P43: =J43+N43 -> 34949.33
B44: February | D44: 16056.05073 | E44: =IF(D44<>0,F44/D44,0) -> 2.650028996 | F44: 42549 | H44: 16376.68305 | I44: =IF(H44<>0,J44/H44,0) -> 0.6400001737 | J44: 10481.08 | L44: 16376.68305 | M44: =IF(L44<>0,N44/L44,0) -> 1.49999972 | N44: 24565.02 | P44: 35046.1
B45: March | D45: 15236.05007 | E45: 2.649965037 | F45: 40375 | H45: 15368.35919 | I45: 0.6400000075 | J45: 9835.75 | L45: 15368.35919 | M45: 1.500000079 | N45: 23052.54 | P45: 32888.29
B46: April | D46: 15003.4176 | E46: 2.649996224 | F46: 39759 | H46: 15172.0232 | I46: 0.6399996803 | J46: 9710.09 | L46: 15172.0232 | M46: 1.499999683 | N46: 22758.03 | P46: 32468.12
B47: May | D47: 15457.27752 | E47: 2.650013881 | F47: 40962 | H47: 15505.16312 | I47: 0.6399997163 | J47: 9923.3 | L47: 15505.16312 | M47: 1.499999698 | N47: 23257.74 | P47: 33181.04
B48: June | D48: 15697.82419 | E48: 2.649985086 | F48: 41599 | H48: 15711.34483 | I48: 0.6399999558 | J48: 10055.26 | L48: 15711.34483 | M48: 1.500000175 | N48: 23567.02 | P48: 33622.28
B49: July | D49: 15952.55848 | E49: 2.649982449 | F49: 42274 | H49: 15982.41656 | I49: 0.6400002127 | J49: 10228.75 | L49: 15982.41656 | M49: 1.499999697 | N49: 23973.62 | P49: 34202.37
B50: August | D50: 15522.6806 | E50: 2.649993327 | F50: 41135 | H50: 15639.13516 | I50: 0.6400002236 | J50: 10009.05 | L50: 15639.13516 | M50: 1.499999825 | N50: 23458.7 | P50: 33467.75
B51: September | D51: 15215.19167 | E51: 2.649983048 | F51: 40320 | H51: 15408.42415 | I51: 0.6399999055 | J51: 9861.39 | L51: 15408.42415 | M51: 1.500000245 | N51: 23112.64 | P51: 32974.03
B52: October | D52: 14573.72382 | E52: 2.649974741 | F52: 38620 | H52: 14609.69838 | I52: 0.6400002079 | J52: 9350.21 | L52: 14609.69838 | M52: 1.500000167 | N52: 21914.55 | P52: 31264.76
B53: November | D53: 15291.2664 | E53: 2.65000942 | F53: 40522 | H53: 15309.69632 | I53: 0.6400002846 | J53: 9798.21 | L53: 15309.69632 | M53: 1.499999708 | N53: 22964.54 | P53: 32762.75
B54: December | D54: 15360.87858 | E54: 2.649978632 | F54: 40706 | H54: 15453.26962 | I54: 0.6399998346 | J54: 9890.09 | L54: 15453.26962 | M54: 1.499999714 | N54: 23179.9 | P54: 33069.99
B56: Total | D56: =SUM(D43:D54) -> 185654.7619 | E56: =IF(D56<>0,F56/D56,0) -> 2.649993973 | F56: =SUM(F43:F54) -> 491984 | H56: =SUM(H43:H54) -> 186867.6759 | I56: =IF(H56<>0,J56/H56,0) -> 0.6400000396 | J56: =SUM(J43:J54) -> 119595.32 | L56: =SUM(L43:L54) -> 186867.6759 | M56: =IF(L56<>0,N56/L56,0) -> 1.499999872 | N56: =SUM(N43:N54) -> 280301.49 | P56: =SUM(P43:P54) -> 399896.81
B58: Add Extra Host Here (I) | D58: Network | H58: Line Connection | L58: Transformation Connection | P58: Total Line
B59: (if needed)
B60: Month | D60: Units Billed | E60: Rate | F60: Amount | H60: Units Billed | I60: Rate | J60: Amount | L60: Units Billed | M60: Rate | N60: Amount | P60: Amount
B62: January | E62: =IF(D62<>0,F62/D62,0) -> 0 | I62: =IF(H62<>0,J62/H62,0) -> 0 | M62: =IF(L62<>0,N62/L62,0) -> 0 | P62: =J62+N62 -> 0
B63: February | E63: 0 | I63: 0 | M63: 0 | P63: 0
B64: March | E64: 0 | I64: 0 | M64: 0 | P64: 0
B65: April | E65: 0 | I65: 0 | M65: 0 | P65: 0
B66: May | E66: 0 | I66: 0 | M66: 0 | P66: 0
B67: June | E67: 0 | I67: 0 | M67: 0 | P67: 0
B68: July | E68: 0 | I68: 0 | M68: 0 | P68: 0
B69: August | E69: 0 | I69: 0 | M69: 0 | P69: 0
B70: September | E70: 0 | I70: 0 | M70: 0 | P70: 0
B71: October | E71: 0 | I71: 0 | M71: 0 | P71: 0
B72: November | E72: 0 | I72: 0 | M72: 0 | P72: 0
B73: December | E73: 0 | I73: 0 | M73: 0 | P73: 0
B75: Total | D75: =SUM(D62:D73) -> 0 | E75: =IF(D75<>0,F75/D75,0) -> 0 | F75: =SUM(F62:F73) -> 0 | H75: =SUM(H62:H73) -> 0 | I75: =IF(H75<>0,J75/H75,0) -> 0 | J75: =SUM(J62:J73) -> 0 | L75: =SUM(L62:L73) -> 0 | M75: =IF(L75<>0,N75/L75,0) -> 0 | N75: =SUM(N62:N73) -> 0 | P75: =SUM(P62:P73) -> 0
B77: Add Extra Host Here (II) | D77: Network | H77: Line Connection | L77: Transformation Connection | P77: Total Line
B78: (if needed)
B79: Month | D79: Units Billed | E79: Rate | F79: Amount | H79: Units Billed | I79: Rate | J79: Amount | L79: Units Billed | M79: Rate | N79: Amount | P79: Amount
B81: January | E81: =IF(D81<>0,F81/D81,0) -> 0 | I81: =IF(H81<>0,J81/H81,0) -> 0 | M81: =IF(L81<>0,N81/L81,0) -> 0 | P81: =J81+N81 -> 0
B82: February | E82: 0 | I82: 0 | M82: 0 | P82: 0
B83: March | E83: 0 | I83: 0 | M83: 0 | P83: 0
B84: April | E84: 0 | I84: 0 | M84: 0 | P84: 0
B85: May | E85: 0 | I85: 0 | M85: 0 | P85: 0
B86: June | E86: 0 | I86: 0 | M86: 0 | P86: 0
B87: July | E87: 0 | I87: 0 | M87: 0 | P87: 0
B88: August | E88: 0 | I88: 0 | M88: 0 | P88: 0
B89: September | E89: 0 | I89: 0 | M89: 0 | P89: 0
B90: October | E90: 0 | I90: 0 | M90: 0 | P90: 0
B91: November | E91: 0 | I91: 0 | M91: 0 | P91: 0
B92: December | E92: 0 | I92: 0 | M92: 0 | P92: 0
B94: Total | D94: =SUM(D81:D92) -> 0 | E94: =IF(D94<>0,F94/D94,0) -> 0 | F94: =SUM(F81:F92) -> 0 | H94: =SUM(H81:H92) -> 0 | I94: =IF(H94<>0,J94/H94,0) -> 0 | J94: =SUM(J81:J92) -> 0 | L94: =SUM(L81:L92) -> 0 | M94: =IF(L94<>0,N94/L94,0) -> 0 | N94: =SUM(N81:N92) -> 0 | P94: =SUM(P81:P92) -> 0
B96: Total | D96: Network | H96: Line Connection | L96: Transformation Connection | P96: Total Line
B98: Month | D98: Units Billed | E98: Rate | F98: Amount | H98: Units Billed | I98: Rate | J98: Amount | L98: Units Billed | M98: Rate | N98: Amount | P98: Amount
B100: January | D100: =D24+D43+D62+D81 -> 16779.64719 | E100: =IF(D100<>0,F100/D100,0) -> 2.676993115 | F100: =F24+F43+F62+F81 -> 44919 | H100: =H24+H43+H62+H81 -> 16869.63535 | I100: =IF(H100<>0,J100/H100,0) -> 0.6451046377 | J100: =J24+J43+J62+J81 -> 10882.68 | L100: =L24+L43+L62+L81 -> 16869.63535 | M100: =IF(L100<>0,N100/L100,0) -> 1.511484361 | N100: =N24+N43+N62+N81 -> 25498.19 | P100: =J100+N100 -> 36380.87
B101: February | D101: =D25+D44+D63+D82 -> 16536.53373 | E101: 2.676739921 | F101: =F25+F44+F63+F82 -> 44264 | H101: =H25+H44+H63+H82 -> 16892.67105 | I101: 0.6448873577 | J101: =J25+J44+J63+J82 -> 10893.87 | L101: =L25+L44+L63+L82 -> 16892.67105 | M101: 1.510996095 | N101: =N25+N44+N63+N82 -> 25524.76 | P101: 36418.63
B102: March | D102: 15682.09907 | E102: 2.676108587 | F102: 41967 | H102: 15828.45719 | I102: 0.6446509521 | J102: 10203.83 | L102: 15828.45719 | M102: 1.510464331 | N102: 23908.32 | P102: 34112.15
B103: April | D103: 16953.6726 | E103: 2.755804072 | F103: 46721 | H103: 17122.2782 | I103: 0.6582237402 | J103: 11270.29 | L103: 17122.2782 | M103: 1.541004047 | N103: 26385.5 | P103: 37655.79
B104: May | D104: 23208.56752 | E104: 2.957269979 | F104: 68634 | H104: 24480.20312 | I104: 0.6986596441 | J104: 17103.33 | L104: 24480.20312 | M104: 1.631984416 | N104: 39951.31 | P104: 57054.64
B105: June | D105: 24765.58419 | E105: 2.986846562 | F105: 73971 | H105: 25135.68483 | I105: 0.6999900785 | J105: 17594.73 | L105: 25135.68483 | M105: 1.634977932 | N105: 41096.29 | P105: 58691.02
B106: July | D106: 16364.84848 | E106: 2.673168654 | F106: 43746 | H106: 25212.57656 | I106: 0.6985751716 | J106: 17612.88 | L106: 25212.57656 | M106: 1.631793557 | N106: 41141.72 | P106: 58754.6
B107: August | D107: 15935.5286 | E107: 2.673836624 | F107: 42609 | H107: 25184.88516 | I107: 0.7006444496 | J107: 17645.65 | L107: 25184.88516 | M107: 1.636449789 | N107: 41213.8 | P107: 58859.45
B108: September | D108: 15625.33967 | E108: 2.674117868 | F108: 41784 | H108: 24713.13415 | I108: 0.7002414139 | J108: 17305.16 | L108: 24713.13415 | M108: 1.63554326 | N108: 40419.4 | P108: 57724.56
B109: October | D109: 24176.81382 | E109: 3.015409745 | F109: 72903 | H109: 24212.78838 | I109: 0.7034580129 | J109: 17032.68 | L109: 24212.78838 | M109: 1.642780641 | N109: 39776.3 | P109: 56808.98
B110: November | D110: 15774.3954 | E110: 2.678200903 | F110: 42247 | H110: 15815.19032 | I110: 0.645114589 | J110: 10202.61 | L110: 15815.19032 | M110: 1.511506313 | N110: 23904.76 | P110: 34107.37
B111: December | D111: 15801.15858 | E111: 2.675626587 | F111: 42278 | H111: 15962.61562 | I111: 0.6451054292 | J111: 10297.57 | L111: 15962.61562 | M111: 1.511486625 | N111: 24127.28 | P111: 34424.85
B113: Total | D113: =SUM(D100:D111) -> 217604.1889 | E113: =IF(D113<>0,F113/D113,0) -> 2.785070467 | F113: =SUM(F100:F111) -> 606043 | H113: =SUM(H100:H111) -> 247430.1199 | I113: =IF(H113<>0,J113/H113,0) -> 0.6791625855 | J113: =SUM(J100:J111) -> 168045.28 | L113: =SUM(L100:L111) -> 247430.1199 | M113: =IF(L113<>0,N113/L113,0) -> 1.588115586 | N113: =SUM(N100:N111) -> 392947.63 | P113: =SUM(P100:P111) -> 560992.91
N115: Low Voltage Switchgear Credit (if applicable) | P115: ='5. UTRs and Sub-Transmission'!E75 -> 0
N117: Total including deduction for Low Voltage Switchgear Credit | P117: =P113+P115 -> 560992.91

Sheet 7. Current Wholesale
B13: The purpose of this sheet is to calculate the expected billing when current 2016 Uniform Transmission Rates are applied against historical 2015 transmission units.
B20: IESO | D20: Network | H20: Line Connection | L20: Transformation Connection | P20: Total Line
B22: Month | D22: Units Billed | E22: Rate | F22: Amount | H22: Units Billed | I22: Rate | J22: Amount | L22: Units Billed | M22: Rate | N22: Amount | P22: Amount
B24: January | D24: ='6. Historical Wholesale'!D24 -> 491.805 | E24: ='5. UTRs and Sub-Transmission'!H22 -> 3.66 | F24: =D24*E24 -> 1800.0063 | H24: ='6. Historical Wholesale'!H24 -> 538.173 | I24: ='5. UTRs and Sub-Transmission'!H24 -> 0.87 | J24: =H24*I24 -> 468.21051 | L24: ='6. Historical Wholesale'!L24 -> 538.173 | M24: ='5. UTRs and Sub-Transmission'!H26 -> 2.02 | N24: =L24*M24 -> 1087.10946 | P24: =J24+N24 -> 1555.31997
B25: February | D25: ='6. Historical Wholesale'!D25 -> 480.483 | E25: =E24 -> 3.66 | F25: =D25*E25 -> 1758.56778 | H25: ='6. Historical Wholesale'!H25 -> 515.988 | I25: =I24 -> 0.87 | J25: =H25*I25 -> 448.90956 | L25: ='6. Historical Wholesale'!L25 -> 515.988 | M25: =M24 -> 2.02 | N25: =L25*M25 -> 1042.29576 | P25: 1491.20532
B26: March | D26: ='6. Historical Wholesale'!D26 -> 446.049 | E26: =E25 -> 3.66 | F26: 1632.53934 | H26: ='6. Historical Wholesale'!H26 -> 460.098 | I26: =I25 -> 0.87 | J26: 400.28526 | L26: ='6. Historical Wholesale'!L26 -> 460.098 | M26: =M25 -> 2.02 | N26: 929.39796 | P26: 1329.68322
B27: April | D27: ='6. Historical Wholesale'!D27 -> 1950.255 | E27: 3.66 | F27: 7137.9333 | H27: ='6. Historical Wholesale'!H27 -> 1950.255 | I27: 0.87 | J27: 1696.72185 | L27: ='6. Historical Wholesale'!L27 -> 1950.255 | M27: 2.02 | N27: 3939.5151 | P27: 5636.23695
B28: May | D28: ='6. Historical Wholesale'!D28 -> 7751.29 | E28: 3.66 | F28: 28369.7214 | H28: ='6. Historical Wholesale'!H28 -> 8975.04 | I28: 0.87 | J28: 7808.2848 | L28: ='6. Historical Wholesale'!L28 -> 8975.04 | M28: 2.02 | N28: 18129.5808 | P28: 25937.8656
B29: June | D29: ='6. Historical Wholesale'!D29 -> 9067.76 | E29: 3.66 | F29: 33188.0016 | H29: ='6. Historical Wholesale'!H29 -> 9424.34 | I29: 0.87 | J29: 8199.1758 | L29: ='6. Historical Wholesale'!L29 -> 9424.34 | M29: 2.02 | N29: 19037.1668 | P29: 27236.3426
B30: July | D30: ='6. Historical Wholesale'!D30 -> 412.29 | E30: 3.66 | F30: 1508.9814 | H30: ='6. Historical Wholesale'!H30 -> 9230.16 | I30: 0.87 | J30: 8030.2392 | L30: ='6. Historical Wholesale'!L30 -> 9230.16 | M30: 2.02 | N30: 18644.9232 | P30: 26675.1624
B31: August | D31: ='6. Historical Wholesale'!D31 -> 412.848 | E31: 3.66 | F31: 1511.02368 | H31: ='6. Historical Wholesale'!H31 -> 9545.75 | I31: 0.87 | J31: 8304.8025 | L31: ='6. Historical Wholesale'!L31 -> 9545.75 | M31: 2.02 | N31: 19282.415 | P31: 27587.2175
B32: September | D32: ='6. Historical Wholesale'!D32 -> 410.148 | E32: 3.66 | F32: 1501.14168 | H32: ='6. Historical Wholesale'!H32 -> 9304.71 | I32: 0.87 | J32: 8095.0977 | L32: ='6. Historical Wholesale'!L32 -> 9304.71 | M32: 2.02 | N32: 18795.5142 | P32: 26890.6119
B33: October | D33: ='6. Historical Wholesale'!D33 -> 9603.09 | E33: 3.66 | F33: 35147.3094 | H33: ='6. Historical Wholesale'!H33 -> 9603.09 | I33: 0.87 | J33: 8354.6883 | L33: ='6. Historical Wholesale'!L33 -> 9603.09 | M33: 2.02 | N33: 19398.2418 | P33: 27752.9301
B34: November | D34: ='6. Historical Wholesale'!D34 -> 483.129 | E34: 3.66 | F34: 1768.25214 | H34: ='6. Historical Wholesale'!H34 -> 505.494 | I34: 0.87 | J34: 439.77978 | L34: ='6. Historical Wholesale'!L34 -> 505.494 | M34: 2.02 | N34: 1021.09788 | P34: 1460.87766
B35: December | D35: ='6. Historical Wholesale'!D35 -> 440.28 | E35: 3.66 | F35: 1611.4248 | H35: ='6. Historical Wholesale'!H35 -> 509.346 | I35: 0.87 | J35: 443.13102 | L35: ='6. Historical Wholesale'!L35 -> 509.346 | M35: 2.02 | N35: 1028.87892 | P35: 1472.00994
B37: Total | D37: =SUM(D24:D35) -> 31949.427 | E37: =IF(D37<>0,F37/D37,0) -> 3.66 | F37: =SUM(F24:F35) -> 116934.9028 | H37: =SUM(H24:H35) -> 60562.444 | I37: =IF(H37<>0,J37/H37,0) -> 0.87 | J37: =SUM(J24:J35) -> 52689.32628 | L37: =SUM(L24:L35) -> 60562.444 | M37: =IF(L37<>0,N37/L37,0) -> 2.02 | N37: =SUM(N24:N35) -> 122336.1369 | P37: =SUM(P24:P35) -> 175025.4632
B39: Hydro One | D39: Network | H39: Line Connection | L39: Transformation Connection | P39: Total Line
B41: Month | D41: Units Billed | E41: Rate | F41: Amount | H41: Units Billed | I41: Rate | J41: Amount | L41: Units Billed | M41: Rate | N41: Amount | P41: Amount
B43: January | D43: ='6. Historical Wholesale'!D43 -> 16287.84219 | E43: ='5. UTRs and Sub-Transmission'!$F$36 -> 3.4121 | F43: =D43*E43 -> 55575.74633 | H43: ='6. Historical Wholesale'!H43 -> 16331.46235 | I43: ='5. UTRs and Sub-Transmission'!F38 -> 0.7879 | J43: =H43*I43 -> 12867.55918 | L43: ='6. Historical Wholesale'!L43 -> 16331.46235 | M43: ='5. UTRs and Sub-Transmission'!F40 -> 1.8018 | N43: =L43*M43 -> 29426.02886 | P43: =J43+N43 -> 42293.58804
B44: February | D44: ='6. Historical Wholesale'!D44 -> 16056.05073 | E44: ='5. UTRs and Sub-Transmission'!H36 -> 3.3396 | F44: =D44*E44 -> 53620.78703 | H44: ='6. Historical Wholesale'!H44 -> 16376.68305 | I44: ='5. UTRs and Sub-Transmission'!H38 -> 0.7791 | J44: =H44*I44 -> 12759.07377 | L44: ='6. Historical Wholesale'!L44 -> 16376.68305 | M44: ='5. UTRs and Sub-Transmission'!H40 -> 1.7713 | N44: =L44*M44 -> 29008.01869 | P44: 41767.09246
B45: March | D45: ='6. Historical Wholesale'!D45 -> 15236.05007 | E45: =E44 -> 3.3396 | F45: 50882.31283 | H45: ='6. Historical Wholesale'!H45 -> 15368.35919 | I45: =I44 -> 0.7791 | J45: 11973.48865 | L45: ='6. Historical Wholesale'!L45 -> 15368.35919 | M45: =M44 -> 1.7713 | N45: 27221.97464 | P45: 39195.46329
B46: April | D46: ='6. Historical Wholesale'!D46 -> 15003.4176 | E46: 3.3396 | F46: 50105.41343 | H46: ='6. Historical Wholesale'!H46 -> 15172.0232 | I46: 0.7791 | J46: 11820.52328 | L46: ='6. Historical Wholesale'!L46 -> 15172.0232 | M46: =M45 -> 1.7713 | N46: 26874.2047 | P46: 38694.72798
B47: May | D47: ='6. Historical Wholesale'!D47 -> 15457.27752 | E47: 3.3396 | F47: 51621.12401 | H47: ='6. Historical Wholesale'!H47 -> 15505.16312 | I47: 0.7791 | J47: 12080.07259 | L47: ='6. Historical Wholesale'!L47 -> 15505.16312 | M47: 1.7713 | N47: 27464.29544 | P47: 39544.36803
B48: June | D48: ='6. Historical Wholesale'!D48 -> 15697.82419 | E48: 3.3396 | F48: 52424.45368 | H48: ='6. Historical Wholesale'!H48 -> 15711.34483 | I48: 0.7791 | J48: 12240.70876 | L48: ='6. Historical Wholesale'!L48 -> 15711.34483 | M48: 1.7713 | N48: 27829.5051 | P48: 40070.21386
B49: July | D49: ='6. Historical Wholesale'!D49 -> 15952.55848 | E49: 3.3396 | F49: 53275.16431 | H49: ='6. Historical Wholesale'!H49 -> 15982.41656 | I49: 0.7791 | J49: 12451.90075 | L49: ='6. Historical Wholesale'!L49 -> 15982.41656 | M49: 1.7713 | N49: 28309.65446 | P49: 40761.5552
B50: August | D50: ='6. Historical Wholesale'!D50 -> 15522.6806 | E50: 3.3396 | F50: 51839.54413 | H50: ='6. Historical Wholesale'!H50 -> 15639.13516 | I50: 0.7791 | J50: 12184.4502 | L50: ='6. Historical Wholesale'!L50 -> 15639.13516 | M50: 1.7713 | N50: 27701.60011 | P50: 39886.05031
B51: September | D51: ='6. Historical Wholesale'!D51 -> 15215.19167 | E51: 3.3396 | F51: 50812.6541 | H51: ='6. Historical Wholesale'!H51 -> 15408.42415 | I51: 0.7791 | J51: 12004.70326 | L51: ='6. Historical Wholesale'!L51 -> 15408.42415 | M51: 1.7713 | N51: 27292.9417 | P51: 39297.64495
B52: October | D52: ='6. Historical Wholesale'!D52 -> 14573.72382 | E52: 3.3396 | F52: 48670.40806 | H52: ='6. Historical Wholesale'!H52 -> 14609.69838 | I52: 0.7791 | J52: 11382.41601 | L52: ='6. Historical Wholesale'!L52 -> 14609.69838 | M52: 1.7713 | N52: 25878.15874 | P52: 37260.57474
B53: November | D53: ='6. Historical Wholesale'!D53 -> 15291.2664 | E53: 3.3396 | F53: 51066.71326 | H53: ='6. Historical Wholesale'!H53 -> 15309.69632 | I53: 0.7791 | J53: 11927.7844 | L53: ='6. Historical Wholesale'!L53 -> 15309.69632 | M53: 1.7713 | N53: 27118.06508 | P53: 39045.84948
B54: December | D54: ='6. Historical Wholesale'!D54 -> 15360.87858 | E54: 3.3396 | F54: 51299.1901 | H54: ='6. Historical Wholesale'!H54 -> 15453.26962 | I54: 0.7791 | J54: 12039.64236 | L54: ='6. Historical Wholesale'!L54 -> 15453.26962 | M54: 1.7713 | N54: 27372.37647 | P54: 39412.01883
B56: Total | D56: =SUM(D43:D54) -> 185654.7619 | E56: =IF(D56<>0,F56/D56,0) -> 3.345960562 | F56: =SUM(F43:F54) -> 621193.5113 | H56: =SUM(H43:H54) -> 186867.6759 | I56: =IF(H56<>0,J56/H56,0) -> 0.7798690836 | J56: =SUM(J43:J54) -> 145732.3232 | L56: =SUM(L43:L54) -> 186867.6759 | M56: =IF(L56<>0,N56/L56,0) -> 1.773965574 | N56: =SUM(N43:N54) -> 331496.824 | P56: =SUM(P43:P54) -> 477229.1472
B58: ='6. Historical Wholesale'!B58 -> Add Extra Host Here (I) | D58: Network | H58: Line Connection | L58: Transformation Connection | P58: Total Line
B60: Month | D60: Units Billed | E60: Rate | F60: Amount | H60: Units Billed | I60: Rate | J60: Amount | L60: Units Billed | M60: Rate | N60: Amount | P60: Amount
B62: January | D62: ='6. Historical Wholesale'!D62 -> 0 | E62: ='5. UTRs and Sub-Transmission'!H51 -> 0 | F62: =D62*E62 -> 0 | H62: ='6. Historical Wholesale'!H62 -> 0 | I62: ='5. UTRs and Sub-Transmission'!H53 -> 0 | J62: =H62*I62 -> 0 | L62: ='6. Historical Wholesale'!L62 -> 0 | M62: ='5. UTRs and Sub-Transmission'!H55 -> 0 | N62: =L62*M62 -> 0 | P62: =J62+N62 -> 0
B63: February | D63: ='6. Historical Wholesale'!D63 -> 0 | E63: =E62 -> 0 | F63: =D63*E63 -> 0 | H63: ='6. Historical Wholesale'!H63 -> 0 | I63: =I62 -> 0 | J63: =H63*I63 -> 0 | L63: ='6. Historical Wholesale'!L63 -> 0 | M63: =M62 -> 0 | N63: =L63*M63 -> 0 | P63: 0
B64: March | D64: ='6. Historical Wholesale'!D64 -> 0 | E64: =E63 -> 0 | F64: 0 | H64: ='6. Historical Wholesale'!H64 -> 0 | I64: =I63 -> 0 | J64: 0 | L64: ='6. Historical Wholesale'!L64 -> 0 | M64: =M63 -> 0 | N64: 0 | P64: 0
B65: April | D65: ='6. Historical Wholesale'!D65 -> 0 | E65: 0 | F65: 0 | H65: ='6. Historical Wholesale'!H65 -> 0 | I65: 0 | J65: 0 | L65: ='6. Historical Wholesale'!L65 -> 0 | M65: =M64 -> 0 | N65: 0 | P65: 0
B66: May | D66: ='6. Historical Wholesale'!D66 -> 0 | E66: 0 | F66: 0 | H66: ='6. Historical Wholesale'!H66 -> 0 | I66: 0 | J66: 0 | L66: ='6. Historical Wholesale'!L66 -> 0 | M66: 0 | N66: 0 | P66: 0
B67: June | D67: ='6. Historical Wholesale'!D67 -> 0 | E67: 0 | F67: 0 | H67: ='6. Historical Wholesale'!H67 -> 0 | I67: 0 | J67: 0 | L67: ='6. Historical Wholesale'!L67 -> 0 | M67: 0 | N67: 0 | P67: 0
B68: July | D68: ='6. Historical Wholesale'!D68 -> 0 | E68: 0 | F68: 0 | H68: ='6. Historical Wholesale'!H68 -> 0 | I68: 0 | J68: 0 | L68: ='6. Historical Wholesale'!L68 -> 0 | M68: 0 | N68: 0 | P68: 0
B69: August | D69: ='6. Historical Wholesale'!D69 -> 0 | E69: 0 | F69: 0 | H69: ='6. Historical Wholesale'!H69 -> 0 | I69: 0 | J69: 0 | L69: ='6. Historical Wholesale'!L69 -> 0 | M69: 0 | N69: 0 | P69: 0
B70: September | D70: ='6. Historical Wholesale'!D70 -> 0 | E70: 0 | F70: 0 | H70: ='6. Historical Wholesale'!H70 -> 0 | I70: 0 | J70: 0 | L70: ='6. Historical Wholesale'!L70 -> 0 | M70: 0 | N70: 0 | P70: 0
B71: October | D71: ='6. Historical Wholesale'!D71 -> 0 | E71: 0 | F71: 0 | H71: ='6. Historical Wholesale'!H71 -> 0 | I71: 0 | J71: 0 | L71: ='6. Historical Wholesale'!L71 -> 0 | M71: 0 | N71: 0 | P71: 0
B72: November | D72: ='6. Historical Wholesale'!D72 -> 0 | E72: 0 | F72: 0 | H72: ='6. Historical Wholesale'!H72 -> 0 | I72: 0 | J72: 0 | L72: ='6. Historical Wholesale'!L72 -> 0 | M72: 0 | N72: 0 | P72: 0
B73: December | D73: ='6. Historical Wholesale'!D73 -> 0 | E73: 0 | F73: 0 | H73: ='6. Historical Wholesale'!H73 -> 0 | I73: 0 | J73: 0 | L73: ='6. Historical Wholesale'!L73 -> 0 | M73: 0 | N73: 0 | P73: 0
B75: Total | D75: =SUM(D62:D73) -> 0 | E75: =IF(D75<>0,F75/D75,0) -> 0 | F75: =SUM(F62:F73) -> 0 | H75: =SUM(H62:H73) -> 0 | I75: =IF(H75<>0,J75/H75,0) -> 0 | J75: =SUM(J62:J73) -> 0 | L75: =SUM(L62:L73) -> 0 | M75: =IF(L75<>0,N75/L75,0) -> 0 | N75: =SUM(N62:N73) -> 0 | P75: =SUM(P62:P73) -> 0
B77: ='6. Historical Wholesale'!B77 -> Add Extra Host Here (II) | D77: Network | H77: Line Connection | L77: Transformation Connection | P77: Total Line
B79: Month | D79: Units Billed | E79: Rate | F79: Amount | H79: Units Billed | I79: Rate | J79: Amount | L79: Units Billed | M79: Rate | N79: Amount | P79: Amount
B81: January | D81: ='6. Historical Wholesale'!D81 -> 0 | E81: ='5. UTRs and Sub-Transmission'!H66 -> 0 | F81: =D81*E81 -> 0 | H81: ='6. Historical Wholesale'!H81 -> 0 | I81: ='5. UTRs and Sub-Transmission'!H68 -> 0 | J81: =H81*I81 -> 0 | L81: ='6. Historical Wholesale'!L81 -> 0 | M81: ='5. UTRs and Sub-Transmission'!H70 -> 0 | N81: =L81*M81 -> 0 | P81: =J81+N81 -> 0
B82: February | D82: ='6. Historical Wholesale'!D82 -> 0 | E82: =E81 -> 0 | F82: =D82*E82 -> 0 | H82: ='6. Historical Wholesale'!H82 -> 0 | I82: =I81 -> 0 | J82: =H82*I82 -> 0 | L82: ='6. Historical Wholesale'!L82 -> 0 | M82: =M81 -> 0 | N82: =L82*M82 -> 0 | P82: 0
B83: March | D83: ='6. Historical Wholesale'!D83 -> 0 | E83: =E82 -> 0 | F83: 0 | H83: ='6. Historical Wholesale'!H83 -> 0 | I83: =I82 -> 0 | J83: 0 | L83: ='6. Historical Wholesale'!L83 -> 0 | M83: =M82 -> 0 | N83: 0 | P83: 0
B84: April | D84: ='6. Historical Wholesale'!D84 -> 0 | E84: 0 | F84: 0 | H84: ='6. Historical Wholesale'!H84 -> 0 | I84: 0 | J84: 0 | L84: ='6. Historical Wholesale'!L84 -> 0 | M84: =M83 -> 0 | N84: 0 | P84: 0
B85: May | D85: ='6. Historical Wholesale'!D85 -> 0 | E85: 0 | F85: 0 | H85: ='6. Historical Wholesale'!H85 -> 0 | I85: 0 | J85: 0 | L85: ='6. Historical Wholesale'!L85 -> 0 | M85: 0 | N85: 0 | P85: 0
B86: June | D86: ='6. Historical Wholesale'!D86 -> 0 | E86: 0 | F86: 0 | H86: ='6. Historical Wholesale'!H86 -> 0 | I86: 0 | J86: 0 | L86: ='6. Historical Wholesale'!L86 -> 0 | M86: 0 | N86: 0 | P86: 0
B87: July | D87: ='6. Historical Wholesale'!D87 -> 0 | E87: 0 | F87: 0 | H87: ='6. Historical Wholesale'!H87 -> 0 | I87: 0 | J87: 0 | L87: ='6. Historical Wholesale'!L87 -> 0 | M87: 0 | N87: 0 | P87: 0
B88: August | D88: ='6. Historical Wholesale'!D88 -> 0 | E88: 0 | F88: 0 | H88: ='6. Historical Wholesale'!H88 -> 0 | I88: 0 | J88: 0 | L88: ='6. Historical Wholesale'!L88 -> 0 | M88: 0 | N88: 0 | P88: 0
B89: September | D89: ='6. Historical Wholesale'!D89 -> 0 | E89: 0 | F89: 0 | H89: ='6. Historical Wholesale'!H89 -> 0 | I89: 0 | J89: 0 | L89: ='6. Historical Wholesale'!L89 -> 0 | M89: 0 | N89: 0 | P89: 0
B90: October | D90: ='6. Historical Wholesale'!D90 -> 0 | E90: 0 | F90: 0 | H90: ='6. Historical Wholesale'!H90 -> 0 | I90: 0 | J90: 0 | L90: ='6. Historical Wholesale'!L90 -> 0 | M90: 0 | N90: 0 | P90: 0
B91: November | D91: ='6. Historical Wholesale'!D91 -> 0 | E91: 0 | F91: 0 | H91: ='6. Historical Wholesale'!H91 -> 0 | I91: 0 | J91: 0 | L91: ='6. Historical Wholesale'!L91 -> 0 | M91: 0 | N91: 0 | P91: 0
B92: December | D92: ='6. Historical Wholesale'!D92 -> 0 | E92: 0 | F92: 0 | H92: ='6. Historical Wholesale'!H92 -> 0 | I92: 0 | J92: 0 | L92: ='6. Historical Wholesale'!L92 -> 0 | M92: 0 | N92: 0 | P92: 0
B94: Total | D94: =SUM(D81:D92) -> 0 | E94: =IF(D94<>0,F94/D94,0) -> 0 | F94: =SUM(F81:F92) -> 0 | H94: =SUM(H81:H92) -> 0 | I94: =IF(H94<>0,J94/H94,0) -> 0 | J94: =SUM(J81:J92) -> 0 | L94: =SUM(L81:L92) -> 0 | M94: =IF(L94<>0,N94/L94,0) -> 0 | N94: =SUM(N81:N92) -> 0 | P94: =SUM(P81:P92) -> 0
B96: Total | D96: Network | H96: Line Connection | L96: Transformation Connection | P96: Total Line
B98: Month | D98: Units Billed | E98: Rate | F98: Amount | H98: Units Billed | I98: Rate | J98: Amount | L98: Units Billed | M98: Rate | N98: Amount | P98: Amount
B100: January | D100: =D24+D43+D62+D81 -> 16779.64719 | E100: =IF(D100<>0,F100/D100,0) -> 3.419365854 | F100: =F24+F43+F62+F81 -> 57375.75263 | H100: =H24+H43+H62+H81 -> 16869.63535 | I100: =IF(H100<>0,J100/H100,0) -> 0.7905191439 | J100: =J24+J43+J62+J81 -> 13335.76969 | L100: =L24+L43+L62+L81 -> 16869.63535 | M100: =IF(L100<>0,N100/L100,0) -> 1.808760989 | N100: =N24+N43+N62+N81 -> 30513.13832 | P100: =J100+N100 -> 43848.90801
B101: February | D101: =D25+D44+D63+D82 -> 16536.53373 | E101: 3.348909493 | F101: =F25+F44+F63+F82 -> 55379.35481 | H101: =H25+H44+H63+H82 -> 16892.67105 | I101: 0.7818765478 | J101: =J25+J44+J63+J82 -> 13207.98333 | L101: =L25+L44+L63+L82 -> 16892.67105 | M101: 1.778896562 | N101: =N25+N44+N63+N82 -> 30050.31445 | P101: 43258.29778
B102: March | D102: 15682.09907 | E102: 3.3487132 | F102: 52514.85217 | H102: 15828.45719 | I102: 0.7817422606 | J102: 12373.77391 | L102: 15828.45719 | M102: 1.778529155 | N102: 28151.3726 | P102: 40525.14651
B103: April | D103: 16953.6726 | E103: 3.376457011 | F103: 57243.34673 | H103: 17122.2782 | I103: 0.7894536561 | J103: 13517.24513 | L103: 17122.2782 | M103: 1.79962733 | N103: 30813.7198 | P103: 44330.96493
B104: May | D104: 23208.56752 | E104: 3.446608471 | F104: 79990.84541 | H104: 24480.20312 | I104: 0.8124261588 | J104: 19888.35739 | L104: 24480.20312 | M104: 1.86247949 | N104: 45593.87624 | P104: 65482.23363
B105: June | D105: 24765.58419 | E105: 3.456912407 | F105: 85612.45528 | H105: 25135.68483 | I105: 0.8131819242 | J105: 20439.88456 | L105: 25135.68483 | M105: 1.864547245 | N105: 46866.6719 | P105: 67306.55646
B106: July | D106: 16364.84848 | E106: 3.34767204 | F106: 54784.14571 | H106: 25212.57656 | I106: 0.8123778977 | J106: 20482.13995 | L106: 25212.57656 | M106: 1.86234745 | N106: 46954.57766 | P106: 67436.7176
B107: August | D107: 15935.5286 | E107: 3.347900729 | F107: 53350.56781 | H107: 25184.88516 | I107: 0.813553549 | J107: 20489.2527 | L107: 25184.88516 | M107: 1.865564 | N107: 46984.01511 | P107: 67473.26781
B108: September | D108: 15625.33967 | E108: 3.348010148 | F108: 52313.79578 | H108: 24713.13415 | I108: 0.8133246408 | J108: 20099.80096 | L108: 24713.13415 | M108: 1.864937714 | N108: 46088.4559 | P108: 66188.25685
B109: October | D109: 24176.81382 | E109: 3.466863669 | F109: 83817.71746 | H109: 24212.78838 | I109: 0.8151520592 | J109: 19737.10431 | L109: 24212.78838 | M109: 1.869937482 | N109: 45276.40054 | P109: 65013.50484
B110: November | D110: 15774.3954 | E110: 3.349413025 | F110: 52834.9654 | H110: 15815.19032 | I110: 0.7820053969 | J110: 12367.56418 | L110: 15815.19032 | M110: 1.779249089 | N110: 28139.16296 | P110: 40506.72714
B111: December | D111: 15801.15858 | E111: 3.348527555 | F111: 52910.6149 | H111: 15962.61562 | I111: 0.782000499 | J111: 12482.77338 | L111: 15962.61562 | M111: 1.779235689 | N111: 28401.25539 | P111: 40884.02877
B113: Total | D113: =SUM(D100:D111) -> 217604.1889 | E113: =IF(D113<>0,F113/D113,0) -> 3.392068958 | F113: =SUM(F100:F111) -> 738128.4141 | H113: =SUM(H100:H111) -> 247430.1199 | I113: =IF(H113<>0,J113/H113,0) -> 0.8019300541 | J113: =SUM(J100:J111) -> 198421.6495 | L113: =SUM(L100:L111) -> 247430.1199 | M113: =IF(L113<>0,N113/L113,0) -> 1.8341864 | N113: =SUM(N100:N111) -> 453832.9609 | P113: =SUM(P100:P111) -> 652254.6104
N115: Low Voltage Switchgear Credit (if applicable) | P115: ='5. UTRs and Sub-Transmission'!H75 -> 0
N117: Total including deduction for Low Voltage Switchgear Credit | P117: =P113+P115 -> 652254.6104

Sheet 8. Forecast Wholesale
B13: The purpose of this sheet is to calculate the expected billing when forecasted 2017 Uniform Transmission Rates are applied against historical 2015 transmission units.
B20: IESO | D20: Network | H20: Line Connection | L20: Transformation Connection | P20: Total Line
B22: Month | D22: Units Billed | E22: Rate | F22: Amount | H22: Units Billed | I22: Rate | J22: Amount | L22: Units Billed | M22: Rate | N22: Amount | P22: Amount
B24: January | D24: ='6. Historical Wholesale'!D24 -> 491.805 | E24: ='5. UTRs and Sub-Transmission'!J22 -> 3.66 | F24: =D24*E24 -> 1800.0063 | H24: ='6. Historical Wholesale'!H24 -> 538.173 | I24: ='5. UTRs and Sub-Transmission'!J24 -> 0.87 | J24: =H24*I24 -> 468.21051 | L24: ='6. Historical Wholesale'!L24 -> 538.173 | M24: ='5. UTRs and Sub-Transmission'!J26 -> 2.02 | N24: =L24*M24 -> 1087.10946 | P24: =J24+N24 -> 1555.31997
B25: February | D25: ='6. Historical Wholesale'!D25 -> 480.483 | E25: =E24 -> 3.66 | F25: 1758.56778 | H25: ='6. Historical Wholesale'!H25 -> 515.988 | I25: =I24 -> 0.87 | J25: 448.90956 | L25: ='6. Historical Wholesale'!L25 -> 515.988 | M25: =M24 -> 2.02 | N25: 1042.29576 | P25: 1491.20532
B26: March | D26: ='6. Historical Wholesale'!D26 -> 446.049 | E26: 3.66 | F26: 1632.53934 | H26: ='6. Historical Wholesale'!H26 -> 460.098 | I26: 0.87 | J26: 400.28526 | L26: ='6. Historical Wholesale'!L26 -> 460.098 | M26: 2.02 | N26: 929.39796 | P26: 1329.68322
B27: April | D27: ='6. Historical Wholesale'!D27 -> 1950.255 | E27: 3.66 | F27: 7137.9333 | H27: ='6. Historical Wholesale'!H27 -> 1950.255 | I27: 0.87 | J27: 1696.72185 | L27: ='6. Historical Wholesale'!L27 -> 1950.255 | M27: 2.02 | N27: 3939.5151 | P27: 5636.23695
B28: May | D28: ='6. Historical Wholesale'!D28 -> 7751.29 | E28: 3.66 | F28: 28369.7214 | H28: ='6. Historical Wholesale'!H28 -> 8975.04 | I28: 0.87 | J28: 7808.2848 | L28: ='6. Historical Wholesale'!L28 -> 8975.04 | M28: 2.02 | N28: 18129.5808 | P28: 25937.8656
B29: June | D29: ='6. Historical Wholesale'!D29 -> 9067.76 | E29: 3.66 | F29: 33188.0016 | H29: ='6. Historical Wholesale'!H29 -> 9424.34 | I29: 0.87 | J29: 8199.1758 | L29: ='6. Historical Wholesale'!L29 -> 9424.34 | M29: 2.02 | N29: 19037.1668 | P29: 27236.3426
B30: July | D30: ='6. Historical Wholesale'!D30 -> 412.29 | E30: 3.66 | F30: 1508.9814 | H30: ='6. Historical Wholesale'!H30 -> 9230.16 | I30: 0.87 | J30: 8030.2392 | L30: ='6. Historical Wholesale'!L30 -> 9230.16 | M30: 2.02 | N30: 18644.9232 | P30: 26675.1624
B31: August | D31: ='6. Historical Wholesale'!D31 -> 412.848 | E31: 3.66 | F31: 1511.02368 | H31: ='6. Historical Wholesale'!H31 -> 9545.75 | I31: 0.87 | J31: 8304.8025 | L31: ='6. Historical Wholesale'!L31 -> 9545.75 | M31: 2.02 | N31: 19282.415 | P31: 27587.2175
B32: September | D32: ='6. Historical Wholesale'!D32 -> 410.148 | E32: 3.66 | F32: 1501.14168 | H32: ='6. Historical Wholesale'!H32 -> 9304.71 | I32: 0.87 | J32: 8095.0977 | L32: ='6. Historical Wholesale'!L32 -> 9304.71 | M32: 2.02 | N32: 18795.5142 | P32: 26890.6119
B33: October | D33: ='6. Historical Wholesale'!D33 -> 9603.09 | E33: 3.66 | F33: 35147.3094 | H33: ='6. Historical Wholesale'!H33 -> 9603.09 | I33: 0.87 | J33: 8354.6883 | L33: ='6. Historical Wholesale'!L33 -> 9603.09 | M33: 2.02 | N33: 19398.2418 | P33: 27752.9301
B34: November | D34: ='6. Historical Wholesale'!D34 -> 483.129 | E34: 3.66 | F34: 1768.25214 | H34: ='6. Historical Wholesale'!H34 -> 505.494 | I34: 0.87 | J34: 439.77978 | L34: ='6. Historical Wholesale'!L34 -> 505.494 | M34: 2.02 | N34: 1021.09788 | P34: 1460.87766
B35: December | D35: ='6. Historical Wholesale'!D35 -> 440.28 | E35: 3.66 | F35: 1611.4248 | H35: ='6. Historical Wholesale'!H35 -> 509.346 | I35: 0.87 | J35: 443.13102 | L35: ='6. Historical Wholesale'!L35 -> 509.346 | M35: 2.02 | N35: 1028.87892 | P35: 1472.00994
B37: Total | D37: =SUM(D24:D35) -> 31949.427 | E37: =IF(D37<>0,F37/D37,0) -> 3.66 | F37: =SUM(F24:F35) -> 116934.9028 | H37: =SUM(H24:H35) -> 60562.444 | I37: =IF(H37<>0,J37/H37,0) -> 0.87 | J37: =SUM(J24:J35) -> 52689.32628 | L37: =SUM(L24:L35) -> 60562.444 | M37: =IF(L37<>0,N37/L37,0) -> 2.02 | N37: =SUM(N24:N35) -> 122336.1369 | P37: =SUM(P24:P35) -> 175025.4632
B39: Hydro One | D39: Network | H39: Line Connection | L39: Transformation Connection | P39: Total Line
B41: Month | D41: Units Billed | E41: Rate | F41: Amount | H41: Units Billed | I41: Rate | J41: Amount | L41: Units Billed | M41: Rate | N41: Amount | P41: Amount
B43: January | D43: ='6. Historical Wholesale'!D43 -> 16287.84219 | E43: ='5. UTRs and Sub-Transmission'!J36 -> 3.3396 | F43: =D43*E43 -> 54394.87777 | H43: ='6. Historical Wholesale'!H43 -> 16331.46235 | I43: ='5. UTRs and Sub-Transmission'!J38 -> 0.7791 | J43: =H43*I43 -> 12723.84232 | L43: ='6. Historical Wholesale'!L43 -> 16331.46235 | M43: ='5. UTRs and Sub-Transmission'!J40 -> 1.7713 | N43: =L43*M43 -> 28927.91926 | P43: =J43+N43 -> 41651.76157
B44: February | D44: ='6. Historical Wholesale'!D44 -> 16056.05073 | E44: =E43 -> 3.3396 | F44: 53620.78703 | H44: ='6. Historical Wholesale'!H44 -> 16376.68305 | I44: =I43 -> 0.7791 | J44: 12759.07377 | L44: ='6. Historical Wholesale'!L44 -> 16376.68305 | M44: =M43 -> 1.7713 | N44: 29008.01869 | P44: 41767.09246
B45: March | D45: ='6. Historical Wholesale'!D45 -> 15236.05007 | E45: 3.3396 | F45: 50882.31283 | H45: ='6. Historical Wholesale'!H45 -> 15368.35919 | I45: 0.7791 | J45: 11973.48865 | L45: ='6. Historical Wholesale'!L45 -> 15368.35919 | M45: 1.7713 | N45: 27221.97464 | P45: 39195.46329
B46: April | D46: ='6. Historical Wholesale'!D46 -> 15003.4176 | E46: 3.3396 | F46: 50105.41343 | H46: ='6. Historical Wholesale'!H46 -> 15172.0232 | I46: 0.7791 | J46: 11820.52328 | L46: ='6. Historical Wholesale'!L46 -> 15172.0232 | M46: 1.7713 | N46: 26874.2047 | P46: 38694.72798
B47: May | D47: ='6. Historical Wholesale'!D47 -> 15457.27752 | E47: 3.3396 | F47: 51621.12401 | H47: ='6. Historical Wholesale'!H47 -> 15505.16312 | I47: 0.7791 | J47: 12080.07259 | L47: ='6. Historical Wholesale'!L47 -> 15505.16312 | M47: 1.7713 | N47: 27464.29544 | P47: 39544.36803
B48: June | D48: ='6. Historical Wholesale'!D48 -> 15697.82419 | E48: 3.3396 | F48: 52424.45368 | H48: ='6. Historical Wholesale'!H48 -> 15711.34483 | I48: 0.7791 | J48: 12240.70876 | L48: ='6. Historical Wholesale'!L48 -> 15711.34483 | M48: 1.7713 | N48: 27829.5051 | P48: 40070.21386
B49: July | D49: ='6. Historical Wholesale'!D49 -> 15952.55848 | E49: 3.3396 | F49: 53275.16431 | H49: ='6. Historical Wholesale'!H49 -> 15982.41656 | I49: 0.7791 | J49: 12451.90075 | L49: ='6. Historical Wholesale'!L49 -> 15982.41656 | M49: 1.7713 | N49: 28309.65446 | P49: 40761.5552
B50: August | D50: ='6. Historical Wholesale'!D50 -> 15522.6806 | E50: 3.3396 | F50: 51839.54413 | H50: ='6. Historical Wholesale'!H50 -> 15639.13516 | I50: 0.7791 | J50: 12184.4502 | L50: ='6. Historical Wholesale'!L50 -> 15639.13516 | M50: 1.7713 | N50: 27701.60011 | P50: 39886.05031
B51: September | D51: ='6. Historical Wholesale'!D51 -> 15215.19167 | E51: 3.3396 | F51: 50812.6541 | H51: ='6. Historical Wholesale'!H51 -> 15408.42415 | I51: 0.7791 | J51: 12004.70326 | L51: ='6. Historical Wholesale'!L51 -> 15408.42415 | M51: 1.7713 | N51: 27292.9417 | P51: 39297.64495
B52: October | D52: ='6. Historical Wholesale'!D52 -> 14573.72382 | E52: 3.3396 | F52: 48670.40806 | H52: ='6. Historical Wholesale'!H52 -> 14609.69838 | I52: 0.7791 | J52: 11382.41601 | L52: ='6. Historical Wholesale'!L52 -> 14609.69838 | M52: 1.7713 | N52: 25878.15874 | P52: 37260.57474
B53: November | D53: ='6. Historical Wholesale'!D53 -> 15291.2664 | E53: 3.3396 | F53: 51066.71326 | H53: ='6. Historical Wholesale'!H53 -> 15309.69632 | I53: 0.7791 | J53: 11927.7844 | L53: ='6. Historical Wholesale'!L53 -> 15309.69632 | M53: 1.7713 | N53: 27118.06508 | P53: 39045.84948
B54: December | D54: ='6. Historical Wholesale'!D54 -> 15360.87858 | E54: 3.3396 | F54: 51299.1901 | H54: ='6. Historical Wholesale'!H54 -> 15453.26962 | I54: 0.7791 | J54: 12039.64236 | L54: ='6. Historical Wholesale'!L54 -> 15453.26962 | M54: 1.7713 | N54: 27372.37647 | P54: 39412.01883
B56: Total | D56: =SUM(D43:D54) -> 185654.7619 | E56: =IF(D56<>0,F56/D56,0) -> 3.3396 | F56: =SUM(F43:F54) -> 620012.6427 | H56: =SUM(H43:H54) -> 186867.6759 | I56: =IF(H56<>0,J56/H56,0) -> 0.7791 | J56: =SUM(J43:J54) -> 145588.6063 | L56: =SUM(L43:L54) -> 186867.6759 | M56: =IF(L56<>0,N56/L56,0) -> 1.7713 | N56: =SUM(N43:N54) -> 330998.7144 | P56: =SUM(P43:P54) -> 476587.3207
B58: ='6. Historical Wholesale'!B58 -> Add Extra Host Here (I) | D58: Network | H58: Line Connection | L58: Transformation Connection | P58: Total Line
B60: Month | D60: Units Billed | E60: Rate | F60: Amount | H60: Units Billed | I60: Rate | J60: Amount | L60: Units Billed | M60: Rate | N60: Amount | P60: Amount
B62: January | D62: ='6. Historical Wholesale'!D62 -> 0 | E62: ='5. UTRs and Sub-Transmission'!J51 -> 0 | F62: =D62*E62 -> 0 | H62: ='6. Historical Wholesale'!H62 -> 0 | I62: ='5. UTRs and Sub-Transmission'!J53 -> 0 | J62: =H62*I62 -> 0 | L62: ='6. Historical Wholesale'!L62 -> 0 | M62: ='5. UTRs and Sub-Transmission'!J55 -> 0 | N62: =L62*M62 -> 0 | P62: =J62+N62 -> 0
B63: February | D63: ='6. Historical Wholesale'!D63 -> 0 | E63: =E62 -> 0 | F63: 0 | H63: ='6. Historical Wholesale'!H63 -> 0 | I63: =I62 -> 0 | J63: 0 | L63: ='6. Historical Wholesale'!L63 -> 0 | M63: =M62 -> 0 | N63: 0 | P63: 0
B64: March | D64: ='6. Historical Wholesale'!D64 -> 0 | E64: 0 | F64: 0 | H64: ='6. Historical Wholesale'!H64 -> 0 | I64: 0 | J64: 0 | L64: ='6. Historical Wholesale'!L64 -> 0 | M64: 0 | N64: 0 | P64: 0
B65: April | D65: ='6. Historical Wholesale'!D65 -> 0 | E65: 0 | F65: 0 | H65: ='6. Historical Wholesale'!H65 -> 0 | I65: 0 | J65: 0 | L65: ='6. Historical Wholesale'!L65 -> 0 | M65: 0 | N65: 0 | P65: 0
B66: May | D66: ='6. Historical Wholesale'!D66 -> 0 | E66: 0 | F66: 0 | H66: ='6. Historical Wholesale'!H66 -> 0 | I66: 0 | J66: 0 | L66: ='6. Historical Wholesale'!L66 -> 0 | M66: 0 | N66: 0 | P66: 0
B67: June | D67: ='6. Historical Wholesale'!D67 -> 0 | E67: 0 | F67: 0 | H67: ='6. Historical Wholesale'!H67 -> 0 | I67: 0 | J67: 0 | L67: ='6. Historical Wholesale'!L67 -> 0 | M67: 0 | N67: 0 | P67: 0
B68: July | D68: ='6. Historical Wholesale'!D68 -> 0 | E68: 0 | F68: 0 | H68: ='6. Historical Wholesale'!H68 -> 0 | I68: 0 | J68: 0 | L68: ='6. Historical Wholesale'!L68 -> 0 | M68: 0 | N68: 0 | P68: 0
B69: August | D69: ='6. Historical Wholesale'!D69 -> 0 | E69: 0 | F69: 0 | H69: ='6. Historical Wholesale'!H69 -> 0 | I69: 0 | J69: 0 | L69: ='6. Historical Wholesale'!L69 -> 0 | M69: 0 | N69: 0 | P69: 0
B70: September | D70: ='6. Historical Wholesale'!D70 -> 0 | E70: 0 | F70: 0 | H70: ='6. Historical Wholesale'!H70 -> 0 | I70: 0 | J70: 0 | L70: ='6. Historical Wholesale'!L70 -> 0 | M70: 0 | N70: 0 | P70: 0
B71: October | D71: ='6. Historical Wholesale'!D71 -> 0 | E71: 0 | F71: 0 | H71: ='6. Historical Wholesale'!H71 -> 0 | I71: 0 | J71: 0 | L71: ='6. Historical Wholesale'!L71 -> 0 | M71: 0 | N71: 0 | P71: 0
B72: November | D72: ='6. Historical Wholesale'!D72 -> 0 | E72: 0 | F72: 0 | H72: ='6. Historical Wholesale'!H72 -> 0 | I72: 0 | J72: 0 | L72: ='6. Historical Wholesale'!L72 -> 0 | M72: 0 | N72: 0 | P72: 0
B73: December | D73: ='6. Historical Wholesale'!D73 -> 0 | E73: 0 | F73: 0 | H73: ='6. Historical Wholesale'!H73 -> 0 | I73: 0 | J73: 0 | L73: ='6. Historical Wholesale'!L73 -> 0 | M73: 0 | N73: 0 | P73: 0
B75: Total | D75: =SUM(D62:D73) -> 0 | E75: =IF(D75<>0,F75/D75,0) -> 0 | F75: =SUM(F62:F73) -> 0 | H75: =SUM(H62:H73) -> 0 | I75: =IF(H75<>0,J75/H75,0) -> 0 | J75: =SUM(J62:J73) -> 0 | L75: =SUM(L62:L73) -> 0 | M75: =IF(L75<>0,N75/L75,0) -> 0 | N75: =SUM(N62:N73) -> 0 | P75: =SUM(P62:P73) -> 0
B77: ='6. Historical Wholesale'!B77 -> Add Extra Host Here (II) | D77: Network | H77: Line Connection | L77: Transformation Connection | P77: Total Line
B79: Month | D79: Units Billed | E79: Rate | F79: Amount | H79: Units Billed | I79: Rate | J79: Amount | L79: Units Billed | M79: Rate | N79: Amount | P79: Amount
B81: January | D81: ='6. Historical Wholesale'!D81 -> 0 | E81: ='5. UTRs and Sub-Transmission'!J66 -> 0 | F81: =D81*E81 -> 0 | H81: ='6. Historical Wholesale'!H81 -> 0 | I81: ='5. UTRs and Sub-Transmission'!J68 -> 0 | J81: =H81*I81 -> 0 | L81: ='6. Historical Wholesale'!L81 -> 0 | M81: ='5. UTRs and Sub-Transmission'!J70 -> 0 | N81: =L81*M81 -> 0 | P81: =J81+N81 -> 0
B82: February | D82: ='6. Historical Wholesale'!D82 -> 0 | E82: =E81 -> 0 | F82: 0 | H82: ='6. Historical Wholesale'!H82 -> 0 | I82: =I81 -> 0 | J82: 0 | L82: ='6. Historical Wholesale'!L82 -> 0 | M82: =M81 -> 0 | N82: 0 | P82: 0
B83: March | D83: ='6. Historical Wholesale'!D83 -> 0 | E83: 0 | F83: 0 | H83: ='6. Historical Wholesale'!H83 -> 0 | I83: 0 | J83: 0 | L83: ='6. Historical Wholesale'!L83 -> 0 | M83: 0 | N83: 0 | P83: 0
B84: April | D84: ='6. Historical Wholesale'!D84 -> 0 | E84: 0 | F84: 0 | H84: ='6. Historical Wholesale'!H84 -> 0 | I84: 0 | J84: 0 | L84: ='6. Historical Wholesale'!L84 -> 0 | M84: 0 | N84: 0 | P84: 0
B85: May | D85: ='6. Historical Wholesale'!D85 -> 0 | E85: 0 | F85: 0 | H85: ='6. Historical Wholesale'!H85 -> 0 | I85: 0 | J85: 0 | L85: ='6. Historical Wholesale'!L85 -> 0 | M85: 0 | N85: 0 | P85: 0
B86: June | D86: ='6. Historical Wholesale'!D86 -> 0 | E86: 0 | F86: 0 | H86: ='6. Historical Wholesale'!H86 -> 0 | I86: 0 | J86: 0 | L86: ='6. Historical Wholesale'!L86 -> 0 | M86: 0 | N86: 0 | P86: 0
B87: July | D87: ='6. Historical Wholesale'!D87 -> 0 | E87: 0 | F87: 0 | H87: ='6. Historical Wholesale'!H87 -> 0 | I87: 0 | J87: 0 | L87: ='6. Historical Wholesale'!L87 -> 0 | M87: 0 | N87: 0 | P87: 0
B88: August | D88: ='6. Historical Wholesale'!D88 -> 0 | E88: 0 | F88: 0 | H88: ='6. Historical Wholesale'!H88 -> 0 | I88: 0 | J88: 0 | L88: ='6. Historical Wholesale'!L88 -> 0 | M88: 0 | N88: 0 | P88: 0
B89: September | D89: ='6. Historical Wholesale'!D89 -> 0 | E89: 0 | F89: 0 | H89: ='6. Historical Wholesale'!H89 -> 0 | I89: 0 | J89: 0 | L89: ='6. Historical Wholesale'!L89 -> 0 | M89: 0 | N89: 0 | P89: 0
B90: October | D90: ='6. Historical Wholesale'!D90 -> 0 | E90: 0 | F90: 0 | H90: ='6. Historical Wholesale'!H90 -> 0 | I90: 0 | J90: 0 | L90: ='6. Historical Wholesale'!L90 -> 0 | M90: 0 | N90: 0 | P90: 0
B91: November | D91: ='6. Historical Wholesale'!D91 -> 0 | E91: 0 | F91: 0 | H91: ='6. Historical Wholesale'!H91 -> 0 | I91: 0 | J91: 0 | L91: ='6. Historical Wholesale'!L91 -> 0 | M91: 0 | N91: 0 | P91: 0
B92: December | D92: ='6. Historical Wholesale'!D92 -> 0 | E92: 0 | F92: 0 | H92: ='6. Historical Wholesale'!H92 -> 0 | I92: 0 | J92: 0 | L92: ='6. Historical Wholesale'!L92 -> 0 | M92: 0 | N92: 0 | P92: 0
B94: Total | D94: =SUM(D81:D92) -> 0 | E94: =IF(D94<>0,F94/D94,0) -> 0 | F94: =SUM(F81:F92) -> 0 | H94: =SUM(H81:H92) -> 0 | I94: =IF(H94<>0,J94/H94,0) -> 0 | J94: =SUM(J81:J92) -> 0 | L94: =SUM(L81:L92) -> 0 | M94: =IF(L94<>0,N94/L94,0) -> 0 | N94: =SUM(N81:N92) -> 0 | P94: =SUM(P81:P92) -> 0
B96: Total | D96: Network | H96: Line Connection | L96: Transformation Connection | P96: Total Line
B98: Month | D98: Units Billed | E98: Rate | F98: Amount | H98: Units Billed | I98: Rate | J98: Amount | L98: Units Billed | M98: Rate | N98: Amount | P98: Amount
B100: January | D100: =D24+D43+D62+D81 -> 16779.64719 | E100: =IF(D100<>0,F100/D100,0) -> 3.348990801 | F100: =F24+F43+F62+F81 -> 56194.88407 | H100: =H24+H43+H62+H81 -> 16869.63535 | I100: =IF(H100<>0,J100/H100,0) -> 0.7819998804 | J100: =J24+J43+J62+J81 -> 13192.05283 | L100: =L24+L43+L62+L81 -> 16869.63535 | M100: =IF(L100<>0,N100/L100,0) -> 1.779233996 | N100: =N24+N43+N62+N81 -> 30015.02872 | P100: =J100+N100 -> 43207.08154
B101: February | D101: =D25+D44+D63+D82 -> 16536.53373 | E101: 3.348909493 | F101: 55379.35481 | H101: =H25+H44+H63+H82 -> 16892.67105 | I101: 0.7818765478 | J101: =J25+J44+J63+J82 -> 13207.98333 | L101: =L25+L44+L63+L82 -> 16892.67105 | M101: 1.778896562 | N101: =N25+N44+N63+N82 -> 30050.31445 | P101: 43258.29778
B102: March | D102: 15682.09907 | E102: 3.3487132 | F102: 52514.85217 | H102: =H26+H45+H64+H83 -> 15828.45719 | I102: 0.7817422606 | J102: =J26+J45+J64+J83 -> 12373.77391 | L102: =L26+L45+L64+L83 -> 15828.45719 | M102: 1.778529155 | N102: =N26+N45+N64+N83 -> 28151.3726 | P102: 40525.14651
B103: April | D103: 16953.6726 | E103: 3.376457011 | F103: 57243.34673 | H103: =H27+H46+H65+H84 -> 17122.2782 | I103: 0.7894536561 | J103: =J27+J46+J65+J84 -> 13517.24513 | L103: =L27+L46+L65+L84 -> 17122.2782 | M103: 1.79962733 | N103: =N27+N46+N65+N84 -> 30813.7198 | P103: 44330.96493
B104: May | D104: 23208.56752 | E104: 3.446608471 | F104: 79990.84541 | H104: =H28+H47+H66+H85 -> 24480.20312 | I104: 0.8124261588 | J104: =J28+J47+J66+J85 -> 19888.35739 | L104: =L28+L47+L66+L85 -> 24480.20312 | M104: 1.86247949 | N104: =N28+N47+N66+N85 -> 45593.87624 | P104: 65482.23363
B105: June | D105: 24765.58419 | E105: 3.456912407 | F105: 85612.45528 | H105: =H29+H48+H67+H86 -> 25135.68483 | I105: 0.8131819242 | J105: =J29+J48+J67+J86 -> 20439.88456 | L105: =L29+L48+L67+L86 -> 25135.68483 | M105: 1.864547245 | N105: =N29+N48+N67+N86 -> 46866.6719 | P105: 67306.55646
B106: July | D106: 16364.84848 | E106: 3.34767204 | F106: 54784.14571 | H106: =H30+H49+H68+H87 -> 25212.57656 | I106: 0.8123778977 | J106: =J30+J49+J68+J87 -> 20482.13995 | L106: =L30+L49+L68+L87 -> 25212.57656 | M106: 1.86234745 | N106: =N30+N49+N68+N87 -> 46954.57766 | P106: 67436.7176
B107: August | D107: 15935.5286 | E107: 3.347900729 | F107: 53350.56781 | H107: =H31+H50+H69+H88 -> 25184.88516 | I107: 0.813553549 | J107: =J31+J50+J69+J88 -> 20489.2527 | L107: =L31+L50+L69+L88 -> 25184.88516 | M107: 1.865564 | N107: =N31+N50+N69+N88 -> 46984.01511 | P107: 67473.26781
B108: September | D108: 15625.33967 | E108: 3.348010148 | F108: 52313.79578 | H108: =H32+H51+H70+H89 -> 24713.13415 | I108: 0.8133246408 | J108: =J32+J51+J70+J89 -> 20099.80096 | L108: =L32+L51+L70+L89 -> 24713.13415 | M108: 1.864937714 | N108: =N32+N51+N70+N89 -> 46088.4559 | P108: 66188.25685
B109: October | D109: 24176.81382 | E109: 3.466863669 | F109: 83817.71746 | H109: =H33+H52+H71+H90 -> 24212.78838 | I109: 0.8151520592 | J109: =J33+J52+J71+J90 -> 19737.10431 | L109: =L33+L52+L71+L90 -> 24212.78838 | M109: 1.869937482 | N109: =N33+N52+N71+N90 -> 45276.40054 | P109: 65013.50484
B110: November | D110: 15774.3954 | E110: 3.349413025 | F110: 52834.9654 | H110: =H34+H53+H72+H91 -> 15815.19032 | I110: 0.7820053969 | J110: =J34+J53+J72+J91 -> 12367.56418 | L110: =L34+L53+L72+L91 -> 15815.19032 | M110: 1.779249089 | N110: =N34+N53+N72+N91 -> 28139.16296 | P110: 40506.72714
B111: December | D111: 15801.15858 | E111: 3.348527555 | F111: 52910.6149 | H111: =H35+H54+H73+H92 -> 15962.61562 | I111: 0.782000499 | J111: =J35+J54+J73+J92 -> 12482.77338 | L111: =L35+L54+L73+L92 -> 15962.61562 | M111: 1.779235689 | N111: =N35+N54+N73+N92 -> 28401.25539 | P111: 40884.02877
B113: Total | D113: =SUM(D100:D111) -> 217604.1889 | E113: =IF(D113<>0,F113/D113,0) -> 3.386642276 | F113: =SUM(F100:F111) -> 736947.5455 | H113: =SUM(H100:H111) -> 247430.1199 | I113: =IF(H113<>0,J113/H113,0) -> 0.8013492159 | J113: =SUM(J100:J111) -> 198277.9326 | L113: =SUM(L100:L111) -> 247430.1199 | M113: =IF(L113<>0,N113/L113,0) -> 1.832173267 | N113: =SUM(N100:N111) -> 453334.8513 | P113: =SUM(P100:P111) -> 651612.7839
N115: Low Voltage Switchgear Credit (if applicable) | P115: ='5. UTRs and Sub-Transmission'!J75 -> 0
N117: Total including deduction for Low Voltage Switchgear Credit | P117: =P113+P115 -> 651612.7839

Sheet 9. RTSR Rates to Forecast
A13: The purpose of this sheet is to re-align the current RTS Network Rates to recover current wholesale network costs.
A15: Rate Class | B15: Rate Description | C15: Unit | D15: Current RTSR-Network | E15: Loss Adjusted Billed kWh | F15: Billed kW | G15: Billed Amount | H15: Billed Amount % | I15: Current Wholesale Billing | J15: Adjusted RTSR Network
A17: Embedded Distributor | B17: RTSR - Network | C17: kW | D17: 2.9566 | F17: 245804 | G17: =ROUND(D17*F17, 2) -> 726744.11 | H17: =G17/726744.11 -> 1 | I17: =H17*total_current_wholesale_network -> 738128.4141 | J17: =IF(ISERROR(I17/F17), 0, I17/F17) -> 3.002914575
A19: The purpose of this table is to re-align the current RTS Connection Rates to recover current wholesale connection costs.
A20: Rate Class | B20: Rate Description | C20: Unit | D20: Current RTSR-Connection | E20: Loss Adjusted Billed kWh | F20: Billed kW | G20: Billed Amount | H20: Billed Amount % | I20: Current Wholesale Billing | J20: Adjusted RTSR-Connection
A22: Embedded Distributor | B22: RTSR - Connection | C22: kW | D22: 2.3933 | F22: 245804 | G22: =ROUND(D22*F22, 2) -> 588282.71 | H22: =G22/588282.71 -> 1 | I22: =H22*Total_Current_Wholesale_Lineplus -> 652254.6104 | J22: =IF(ISERROR(I22/F22), 0, I22/F22) -> 2.653555721
A24: The purpose of this table is to update the re-aligned RTS Network Rates to recover future wholesale network costs.
A25: Rate Class | B25: Rate Description | C25: Unit | D25: Adjusted RTSR-Network | E25: Loss Adjusted Billed kWh | F25: Billed kW | G25: Billed Amount | H25: Billed Amount % | I25: Current Wholesale Billing | J25: Proposed RTSR-Network
A27: Embedded Distributor | B27: RTSR - Network | C27: kW | D27: 3.002914575 | F27: 245804 | G27: =ROUND(D27*F27, 2) -> 738128.41 | H27: =G27/738128.41 -> 1 | I27: =H27*forecast_wholesale_network -> 736947.5455 | J27: =IF(ISERROR(I27/F27), 0, I27/F27) -> 2.998110468
A29: The purpose of this table is to update the re-aligned RTS Connection Rates to recover future wholesale connection costs.
A30: Rate Class | B30: Rate Description | C30: Unit | D30: Adjusted RTSR-Connection | E30: Loss Adjusted Billed kWh | F30: Billed kW | G30: Billed Amount | H30: Billed Amount % | I30: Current Wholesale Billing | J30: Proposed RTSR-Connection
A32: Embedded Distributor | B32: RTSR - Connection | C32: kW | D32: 2.653555721 | F32: 245804 | G32: =ROUND(D32*F32, 2) -> 652254.61 | H32: =G32/652254.61 -> 1 | I32: =H32*forecast_wholesale_lineplus -> 651612.7839 | J32: =IF(ISERROR(I32/F32), 0, I32/F32) -> 2.65094459

Sheet hidden1 (hidden)
A1: =IF('3. Rate Classes'!L17=1, '3. Rate Classes'!C17, "") -> Embedded Distributor | B1: 1
A2: =IF('3. Rate Classes'!L18=1, '3. Rate Classes'!C18, "") ->  | B2: 2
A3: =IF('3. Rate Classes'!L19=1, '3. Rate Classes'!C19, "") ->  | B3: 3
A4: =IF('3. Rate Classes'!L20=1, '3. Rate Classes'!C20, "") ->  | B4: 4
A5: =IF('3. Rate Classes'!L21=1, '3. Rate Classes'!C21, "") ->  | B5: 5
A6: =IF('3. Rate Classes'!L22=1, '3. Rate Classes'!C22, "") ->  | B6: 6
A7: =IF('3. Rate Classes'!L23=1, '3. Rate Classes'!C23, "") ->  | B7: 7
A8: =IF('3. Rate Classes'!L24=1, '3. Rate Classes'!C24, "") ->  | B8: 8
A9: =IF('3. Rate Classes'!L25=1, '3. Rate Classes'!C25, "") ->  | B9: 9
A10: =IF('3. Rate Classes'!L26=1, '3. Rate Classes'!C26, "") ->  | B10: 10
A11: =IF('3. Rate Classes'!L27=1, '3. Rate Classes'!C27, "") ->  | B11: 11
A12: =IF('3. Rate Classes'!L28=1, '3. Rate Classes'!C28, "") ->  | B12: 12
A13: =IF('3. Rate Classes'!L29=1, '3. Rate Classes'!C29, "") ->  | B13: 13
A14: =IF('3. Rate Classes'!L30=1, '3. Rate Classes'!C30, "") ->  | B14: 14
A15: =IF('3. Rate Classes'!L31=1, '3. Rate Classes'!C31, "") ->  | B15: 15
A16: =IF('3. Rate Classes'!L32=1, '3. Rate Classes'!C32, "") ->  | B16: 16
A17: =IF('3. Rate Classes'!L33=1, '3. Rate Classes'!C33, "") ->  | B17: 17
A18: =IF('3. Rate Classes'!L34=1, '3. Rate Classes'!C34, "") ->  | B18: 18
A19: =IF('3. Rate Classes'!L35=1, '3. Rate Classes'!C35, "") ->  | B19: 19
A20: =IF('3. Rate Classes'!L36=1, '3. Rate Classes'!C36, "") ->  | B20: 20
A21: =IF('3. Rate Classes'!L37=1, '3. Rate Classes'!C37, "") ->  | B21: 21
A22: =IF('3. Rate Classes'!L38=1, '3. Rate Classes'!C38, "") ->  | B22: 22
